bitfinex/quotes_BTCUSD_20240921
["timestamp","ask_amount","ask_price","bid_price","bid_amount"]
[1726899961419,0.0940754,63110.0,63109.0,0.21475859]
[1726899961877,0.0950754,63110.0,63109.0,0.1680468]
[1726899962090,0.0950754,63110.0,63109.0,0.21531081]
[1726899962316,0.0950754,63110.0,63109.0,0.1680468]
[1726899965446,0.0950754,63110.0,63109.0,0.29436593]
[1726899970146,0.0950254,63110.0,63109.0,0.29436593]
[1726899970753,0.0040254,63110.0,63109.0,0.29436593]
[1726899971737,0.0048504,63110.0,63109.0,0.29436593]
[1726899972359,0.0048504,63110.0,63109.0,0.22346574]
[1726899975544,0.0048504,63110.0,63109.0,0.17841894]
[1726899975761,0.0048504,63110.0,63109.0,0.22334928]
[1726899976854,0.0048504,63110.0,63109.0,0.31788287]
[1726899977069,0.0048504,63110.0,63109.0,0.22334928]
[1726899978999,0.0048504,63110.0,63109.0,0.29022528]
[1726899979211,0.0048504,63110.0,63109.0,0.31786169]
[1726899982368,0.0048504,63110.0,63109.0,0.31791043]
[1726899984817,0.0048504,63110.0,63109.0,0.22337684]
[1726899985920,0.0048504,63110.0,63109.0,0.22329903]
[1726899988637,0.0048504,63110.0,63109.0,0.31783262]
[1726899989566,0.0048504,63110.0,63109.0,0.31784276]
[1726899992719,0.0048504,63110.0,63109.0,0.31785762]
[1726899992965,0.0048504,63110.0,63109.0,0.31785377]
[1726899993399,0.0048504,63110.0,63109.0,0.31792143]
[1726899996464,0.0048504,63110.0,63109.0,0.27296739]
[1726899996674,0.0048504,63110.0,63109.0,0.31789254]
[1726899996881,0.0048504,63110.0,63109.0,0.31954254]
[1726899997743,0.0048504,63110.0,63109.0,0.31952979]
[1726900000323,0.0048504,63110.0,63109.0,0.22499409]
[1726900000974,0.0048504,63110.0,63109.0,0.22500097]
[1726900001191,0.0765,63126.0,63110.0,0.094]
[1726900001403,0.000825,63128.0,63127.0,0.023]
[1726900001611,0.000825,63128.0,63127.0,0.06793203]
[1726900002944,0.000825,63128.0,63127.0,0.04028155]
[1726900003379,0.001825,63128.0,63127.0,0.04128155]
[1726900005578,0.00889504,63128.0,63127.0,0.04128155]
[1726900005846,0.001825,63128.0,63127.0,0.04128155]
[1726900006064,0.00889504,63128.0,63127.0,0.04128155]
[1726900006286,0.001825,63128.0,63127.0,0.04128155]
[1726900006477,0.00889504,63128.0,63127.0,0.04128155]
[1726900006606,0.001825,63128.0,63127.0,0.04128155]
[1726900006826,0.00889504,63128.0,63127.0,0.04128155]
[1726900007040,0.001825,63128.0,63127.0,0.04128155]
[1726900007254,0.00889504,63128.0,63127.0,0.04128155]
[1726900007502,0.001825,63128.0,63127.0,0.04128155]
[1726900007918,0.00889504,63128.0,63127.0,0.04128155]
[1726900019606,0.00889504,63128.0,63127.0,0.04121442]
[1726900019854,0.00889504,63128.0,63127.0,0.001]
[1726900020086,0.00889504,63128.0,63127.0,0.04121428]
[1726900020298,0.09979504,63128.0,63127.0,0.01821428]
[1726900020534,0.09979504,63128.0,63127.0,0.001]
[1726900020761,0.09979504,63128.0,63127.0,0.0182054]
[1726900023554,0.09979504,63128.0,63127.0,0.01820206]
[1726900024481,0.00889504,63128.0,63127.0,0.01820206]
[1726900025870,0.00889504,63128.0,63127.0,0.03450206]
[1726900026766,0.00889504,63128.0,63127.0,0.03450591]
[1726900028351,0.00889504,63128.0,63127.0,0.15750591]
[1726900028783,0.001825,63128.0,63127.0,0.15750591]
[1726900029645,0.001825,63128.0,63127.0,0.05750591]
[1726900030138,0.001825,63128.0,63127.0,0.05750892]
[1726900038331,0.001825,63128.0,63127.0,0.0403]
[1726900038549,0.001825,63128.0,63127.0,0.05750674]
[1726900039451,0.001825,63128.0,63127.0,0.24810674]
[1726900042124,0.001825,63128.0,63127.0,0.2309]
[1726900042336,0.001825,63128.0,63127.0,0.2481035]
[1726900046287,0.001825,63128.0,63127.0,0.24810007]
[1726900049168,0.001825,63128.0,63127.0,0.36994374]
[1726900049607,0.001825,63128.0,63127.0,0.24810007]
[1726900049876,0.001825,63128.0,63127.0,0.24809539]
[1726900050135,0.000825,63128.0,63127.0,0.24709539]
[1726900050341,0.000825,63128.0,63127.0,0.24809539]
[1726900050567,0.000825,63128.0,63127.0,0.36993906]
[1726900051860,0.000825,63128.0,63127.0,0.36893906]
[1726900052304,0.000825,63128.0,63127.0,0.36993906]
[1726900056760,0.000825,63128.0,63127.0,0.36991396]
[1726900058328,0.000825,63128.0,63127.0,0.24807029]
[1726900060142,0.000825,63128.0,63127.0,0.2309]
[1726900060403,0.000825,63128.0,63127.0,0.24805819]
[1726900063278,0.000825,63128.0,63127.0,0.2309]
[1726900063406,0.000825,63128.0,63127.0,0.24805643]
[1726900064645,0.000825,63128.0,63127.0,0.05745643]
[1726900077084,0.000825,63128.0,63127.0,0.05747538]
[1726900080148,0.12266867,63128.0,63127.0,0.03447538]
[1726900080385,0.21576867,63128.0,63127.0,0.03447538]
[1726900080636,0.22293386,63128.0,63127.0,0.0173]
[1726900081081,0.27044434,63128.0,63127.0,0.0173]
[1726900081287,0.27044434,63128.0,63127.0,0.0163]
[1726900081498,0.22293386,63128.0,63127.0,0.0163]
[1726900081728,0.27044434,63128.0,63127.0,0.0173]
[1726900082409,0.27044434,63128.0,63127.0,0.0163]
[1726900082632,0.22293386,63128.0,63127.0,0.0163]
[1726900082858,0.22293386,63128.0,63127.0,0.0173]
[1726900083529,0.38598753,63128.0,63127.0,0.0173]
[1726900083744,0.38798753,63128.0,63127.0,0.0173]
[1726900086567,0.38598753,63128.0,63127.0,0.0173]
[1726900087442,0.4448439,63128.0,63127.0,0.0173]
[1726900087655,0.6032519,63128.0,63127.0,0.0173]
[1726900087869,0.96757838,63128.0,63127.0,0.0173]
[1726900088100,0.91573615,63128.0,63127.0,0.0173]
[1726900088342,0.60329559,63128.0,63127.0,0.0173]
[1726900088549,0.38598753,63128.0,63127.0,0.0173]
[1726900088974,0.69966072,63128.0,63127.0,0.0173]
[1726900089429,0.4571705,63128.0,63127.0,0.0173]
[1726900089670,0.38598753,63128.0,63127.0,0.0173]
[1726900089904,0.38798753,63128.0,63127.0,0.0163]
[1726900090129,0.54639553,63128.0,63127.0,0.0163]
[1726900090369,0.54639553,63128.0,63122.0,0.00165]
[1726900090370,0.33532407,63128.0,63122.0,0.00165]
[1726900090574,0.11509019,63128.0,63127.0,0.001]
[1726900091236,0.10109019,63128.0,63122.0,0.00165]
[1726900091442,0.10109019,63128.0,63123.0,0.95049505]
[1726900091653,0.11509019,63128.0,63123.0,0.95049505]
[1726900092088,0.02199019,63128.0,63123.0,0.95049505]
[1726900092735,0.02199019,63128.0,63122.0,0.00165]
[1726900092736,0.16305367,63127.0,63122.0,0.00165]
[1726900093433,0.00706235,63126.0,63122.0,0.00165]
[1726900093669,0.16305367,63125.0,63122.0,0.00265]
[1726900094004,0.0070623,63124.0,63122.0,0.00165]
[1726900094212,0.16305367,63123.0,63122.0,0.00265]
[1726900094626,0.17011595,63123.0,63122.0,0.00265]
[1726900094832,0.17011595,63123.0,63122.0,0.00165]
[1726900095276,0.17011595,63123.0,63122.0,0.00265]
[1726900096542,0.17011595,63123.0,63122.0,0.00165]
[1726900096898,0.18411595,63123.0,63122.0,0.00265]
[1726900105969,0.18411595,63123.0,63122.0,0.09575]
[1726900106418,0.17705367,63123.0,63122.0,0.09575]
[1726900106809,0.18409561,63123.0,63122.0,0.09575]
[1726900107669,0.17009561,63123.0,63122.0,0.09475]
[1726900109064,0.18409561,63123.0,63122.0,0.09575]
[1726900109510,0.17009561,63123.0,63122.0,0.09475]
[1726900109968,0.18109561,63123.0,63122.0,0.09575]
[1726900114523,0.01804194,63123.0,63122.0,0.09575]
[1726900114749,0.011,63123.0,63122.0,0.09575]
[1726900122798,0.01804771,63123.0,63122.0,0.09575]
[1726900135552,0.01804261,63123.0,63122.0,0.09575]
[1726900143206,0.011,63123.0,63122.0,0.09575]
[1726900143426,0.01801935,63123.0,63122.0,0.09575]
[1726900147657,0.01801935,63123.0,63122.0,0.00265]
[1726900154688,0.01801935,63123.0,63122.0,0.10065]
[1726900154939,0.011,63123.0,63122.0,0.22365]
[1726900155414,0.011,63123.0,63122.0,0.24093868]
[1726900155639,0.011,63123.0,63122.0,0.43828235]
[1726900155853,0.011,63123.0,63122.0,0.56441593]
[1726900156076,0.011,63123.0,63122.0,0.43828235]
[1726900156301,0.000826,63127.0,63123.0,0.1]
[1726900156582,0.000826,63127.0,63126.0,0.34354367]
[1726900157702,0.007826,63127.0,63126.0,0.34354367]
[1726900158182,0.000826,63127.0,63126.0,0.34354367]
[1726900159625,0.007826,63127.0,63126.0,0.34454367]
[1726900161986,0.007826,63127.0,63126.0,0.34619567]
[1726900165101,0.007826,63127.0,63126.0,0.224352]
[1726900186095,0.007826,63127.0,63126.0,0.002652]
[1726900186474,0.17087967,63127.0,63126.0,0.002652]
[1726900187479,0.16387967,63127.0,63126.0,0.001652]
[1726900188008,0.17387967,63127.0,63126.0,0.002652]
[1726900189545,0.16387967,63127.0,63126.0,0.001652]
[1726900189958,0.17687967,63127.0,63126.0,0.001652]
[1726900202107,0.26767967,63127.0,63126.0,0.001652]
[1726900204341,0.26967967,63127.0,63126.0,0.001652]
[1726900206780,0.26767967,63127.0,63126.0,0.001652]
[1726900206991,0.10689068,63127.0,63126.0,0.001652]
[1726900208365,0.15433896,63127.0,63126.0,0.001652]
[1726900208594,0.15432332,63127.0,63126.0,0.001652]
[1726900208834,0.14132332,63127.0,63126.0,0.001652]
[1726900209063,0.29973332,63127.0,63126.0,0.001652]
[1726900209345,0.31373332,63127.0,63126.0,0.001652]
[1726900209580,0.31455932,63127.0,63126.0,0.001652]
[1726900209801,0.30055932,63127.0,63126.0,0.001652]
[1726900210493,0.26712668,63127.0,63126.0,0.001652]
[1726900210722,0.10871668,63127.0,63126.0,0.001652]
[1726900211183,0.26712668,63127.0,63126.0,0.001652]
[1726900211906,0.58394768,63127.0,63126.0,0.001652]
[1726900213152,0.58594768,63127.0,63126.0,0.001652]
[1726900215783,0.63335628,63127.0,63126.0,0.001652]
[1726900216216,0.70175043,63127.0,63126.0,0.001652]
[1726900216463,1.33597475,63127.0,63126.0,0.001652]
[1726900216672,1.24110947,63127.0,63126.0,0.001652]
[1726900216912,1.35969107,63127.0,63126.0,0.001652]
[1726900218053,1.34569107,63127.0,63126.0,0.001652]
[1726900218307,1.24388832,63127.0,63126.0,0.001652]
[1726900218506,1.24557502,63127.0,63126.0,0.001652]
[1726900219004,1.23157502,63127.0,63126.0,0.001652]
[1726900219169,1.24557502,63127.0,63126.0,0.001652]
[1726900220776,1.23157502,63127.0,63126.0,0.001652]
[1726900220983,1.24557502,63127.0,63126.0,0.001652]
[1726900221199,1.4086606,63127.0,63126.0,0.001652]
[1726900221429,1.6069765,63127.0,63126.0,0.001652]
[1726900222148,1.110943,63123.0,63122.0,0.00165]
[1726900222381,1.71684158,63123.0,63122.0,0.00165]
[1726900222589,1.85391409,63123.0,63122.0,0.00165]
[1726900223244,1.71346823,63123.0,63122.0,0.00165]
[1726900223458,1.8353119,63123.0,63122.0,0.00165]
[1726900223675,1.71684158,63123.0,63122.0,0.00165]
[1726900223885,1.49475346,63123.0,63122.0,0.00165]
[1726900224330,1.40000058,63123.0,63122.0,0.00165]
[1726900224570,1.39948281,63123.0,63122.0,0.00165]
[1726900224789,1.17569934,63123.0,63122.0,0.00165]
[1726900225004,1.39946211,63123.0,63122.0,0.00165]
[1726900225218,1.17569934,63123.0,63122.0,0.00165]
[1726900225444,1.24675827,63123.0,63122.0,0.00165]
[1726900225656,1.41344626,63123.0,63122.0,0.00165]
[1726900225913,1.41344619,63123.0,63122.0,0.00165]
[1726900226143,1.50819907,63123.0,63122.0,0.00165]
[1726900226368,1.18969934,63123.0,63122.0,0.00165]
[1726900227019,1.41345315,63123.0,63122.0,0.00165]
[1726900227486,1.50820603,63123.0,63122.0,0.00165]
[1726900227702,1.41345315,63123.0,63122.0,0.00165]
[1726900227968,1.39945315,63123.0,63122.0,0.00165]
[1726900228183,1.50820603,63123.0,63122.0,0.00165]
[1726900228721,1.49420603,63123.0,63122.0,0.00165]
[1726900229132,1.50820603,63123.0,63122.0,0.00165]
[1726900229397,1.67129161,63123.0,63122.0,0.00165]
[1726900229623,1.67129738,63123.0,63122.0,0.00165]
[1726900229840,1.57653873,63123.0,63122.0,0.00165]
[1726900230610,1.69500905,63123.0,63122.0,0.00165]
[1726900231089,1.57653873,63123.0,63122.0,0.00165]
[1726900231337,1.69500905,63123.0,63122.0,0.00165]
[1726900232085,1.53192347,63123.0,63122.0,0.00165]
[1726900232314,1.41345315,63123.0,63122.0,0.00165]
[1726900232564,1.53192347,63123.0,63122.0,0.00165]
[1726900233226,1.41439489,63123.0,63122.0,0.00165]
[1726900233987,1.40039489,63123.0,63122.0,0.00165]
[1726900234415,1.41439489,63123.0,63122.0,0.00165]
[1726900234860,1.53286884,63123.0,63122.0,0.00165]
[1726900235076,1.51886884,63123.0,63122.0,0.00165]
[1726900235299,1.53286884,63123.0,63122.0,0.00165]
[1726900235753,1.50917328,63123.0,63122.0,0.00165]
[1726900236642,1.50917439,63123.0,63122.0,0.00165]
[1726900236869,1.41439489,63123.0,63122.0,0.00165]
[1726900237808,1.50917816,63123.0,63122.0,0.00165]
[1726900238034,1.4145773,63123.0,63122.0,0.00165]
[1726900238259,1.50936116,63123.0,63122.0,0.00165]
[1726900238472,1.4145773,63123.0,63122.0,0.00165]
[1726900239164,1.38752131,63123.0,63122.0,0.00165]
[1726900239388,1.4145773,63123.0,63122.0,0.00165]
[1726900239622,1.53305623,63123.0,63122.0,0.00165]
[1726900239825,1.4145773,63123.0,63122.0,0.00165]
[1726900240291,1.53305623,63123.0,63122.0,0.00165]
[1726900240502,1.4145773,63123.0,63122.0,0.00165]
[1726900240723,1.53305623,63123.0,63122.0,0.00165]
[1726900241650,1.4145773,63123.0,63122.0,0.00165]
[1726900241878,1.57766288,63123.0,63122.0,0.00165]
[1726900242097,1.4145773,63123.0,63122.0,0.00165]
[1726900242315,1.29273363,63123.0,63122.0,0.00165]
[1726900242553,1.4145773,63123.0,63122.0,0.00165]
[1726900242760,1.41457797,63123.0,63122.0,0.00165]
[1726900247312,1.2927343,63123.0,63122.0,0.00165]
[1726900247546,1.41553987,63123.0,63122.0,0.00165]
[1726900249817,1.00199887,63123.0,63122.0,0.00165]
[1726900253884,1.14429046,63123.0,63122.0,0.00165]
[1726900254160,1.00199887,63123.0,63122.0,0.00165]
[1726900255764,1.14429046,63123.0,63122.0,0.00165]
[1726900256460,0.002,63114.0,63113.0,0.23763317]
[1726900256688,0.16505367,63114.0,63113.0,0.23763317]
[1726900256891,0.4860097,63114.0,63113.0,0.23763317]
[1726900257113,0.002,63113.0,63106.0,0.00165]
[1726900257334,0.12184367,63110.0,63106.0,0.00165]
[1726900257561,0.33239571,63110.0,63106.0,0.00165]
[1726900259626,0.34639571,63110.0,63107.0,0.0977]
[1726900260291,0.29889734,63110.0,63107.0,0.0977]
[1726900260500,0.35400127,63110.0,63107.0,0.0977]
[1726900261667,0.42529022,63110.0,63107.0,0.0977]
[1726900262426,0.42529022,63110.0,63098.0,0.23763317]
[1726900262427,0.002,63100.0,63098.0,0.23763317]
[1726900262652,0.12184367,63105.0,63090.0,0.001652]
[1726900262653,0.002,63096.0,63090.0,0.001652]
[1726900262871,0.16936593,63091.0,63090.0,0.001652]
[1726900263083,0.16936625,63091.0,63090.0,0.001652]
[1726900263307,0.16936557,63091.0,63090.0,0.001652]
[1726900263521,0.12957698,63091.0,63090.0,0.001652]
[1726900263749,0.29263065,63091.0,63090.0,0.001652]
[1726900264639,0.30663065,63091.0,63090.0,0.001652]
[1726900265450,0.35411009,63091.0,63090.0,0.001652]
[1726900265647,0.30663065,63091.0,63090.0,0.001652]
[1726900266070,0.29263065,63091.0,63090.0,0.001652]
[1726900266243,0.17078698,63091.0,63090.0,0.001652]
[1726900266443,0.18478698,63091.0,63090.0,0.001652]
[1726900267109,0.17078698,63091.0,63090.0,0.001652]
[1726900267778,0.18478698,63091.0,63090.0,0.001652]
[1726900284573,0.17078698,63091.0,63090.0,0.001652]
[1726900284751,0.18478698,63091.0,63090.0,0.001652]
[1726900285252,0.17078698,63091.0,63090.0,0.001652]
[1726900285739,0.18478698,63091.0,63090.0,0.001652]
[1726900292983,0.18561298,63091.0,63090.0,0.001652]
[1726900307798,0.25676867,63091.0,63090.0,0.001652]
[1726900311747,0.41912224,63091.0,63090.0,0.001652]
[1726900313792,0.51399649,63091.0,63090.0,0.001652]
[1726900316115,0.51431228,63091.0,63090.0,0.001652]
[1726900317654,0.54099822,63091.0,63090.0,0.001652]
[1726900318333,0.63615595,63091.0,63090.0,0.001652]
[1726900318549,0.54099822,63091.0,63090.0,0.001652]
[1726900318772,0.63615595,63091.0,63090.0,0.001652]
[1726900319235,0.51431228,63091.0,63090.0,0.001652]
[1726900319699,0.18561298,63091.0,63090.0,0.001652]
[1726900320128,0.41912566,63091.0,63090.0,0.001652]
[1726900320348,0.4190986,63091.0,63090.0,0.001652]
[1726900320555,0.41909897,63091.0,63090.0,0.001652]
[1726900320821,0.18561298,63091.0,63090.0,0.001652]
[1726900321073,0.41907236,63091.0,63090.0,0.001652]
[1726900321325,0.18561298,63091.0,63090.0,0.001652]
[1726900322065,0.41909037,63091.0,63090.0,0.001652]
[1726900323001,0.5142481,63091.0,63090.0,0.001652]
[1726900323226,0.41909037,63091.0,63090.0,0.001652]
[1726900324235,0.5142481,63091.0,63090.0,0.001652]
[1726900324435,0.4190216,63091.0,63090.0,0.001652]
[1726900324740,0.51417986,63091.0,63090.0,0.001652]
[1726900325677,0.4190216,63091.0,63090.0,0.001652]
[1726900326178,0.51417986,63091.0,63090.0,0.001652]
[1726900328305,0.51417986,63091.0,63084.0,0.096002]
[1726900328548,0.04757918,63088.0,63084.0,0.096002]
[1726900329000,0.00744731,63087.0,63084.0,0.096002]
[1726900331862,0.02144731,63087.0,63084.0,0.096002]
[1726900339209,0.02144731,63087.0,63084.0,0.097654]
[1726900340107,0.03044731,63087.0,63084.0,0.098654]
[1726900344435,0.023,63087.0,63086.0,0.2153]
[1726900344888,0.023,63087.0,63086.0,0.27081724]
[1726900345321,0.023,63087.0,63086.0,0.2153]
[1726900345322,0.014,63087.0,63086.0,0.2153]
[1726900345868,0.014,63087.0,63086.0,0.21846978]
[1726900346077,0.000826,63091.0,63087.0,0.1153]
[1726900346297,0.000826,63091.0,63090.0,0.31414367]
[1726900346579,0.000826,63091.0,63090.0,0.33164483]
[1726900347899,0.007826,63091.0,63090.0,0.33264483]
[1726900348109,0.012826,63091.0,63090.0,0.33264483]
[1726900349012,0.012826,63091.0,63090.0,0.33262613]
[1726900350592,0.012826,63091.0,63090.0,0.35562613]
[1726900351245,0.012826,63091.0,63090.0,0.43542613]
[1726900351894,0.012826,63091.0,63090.0,0.41794367]
[1726900352107,0.012826,63091.0,63090.0,0.43541589]
[1726900352556,0.012826,63091.0,63090.0,0.45298146]
[1726900352802,0.012826,63091.0,63090.0,0.45296958]
[1726900353008,0.012826,63091.0,63090.0,0.57934436]
[1726900353244,0.012826,63091.0,63090.0,0.55551079]
[1726900353459,0.012826,63091.0,63090.0,0.57934436]
[1726900354113,0.000826,63091.0,63090.0,0.50733036]
[1726900354564,0.013826,63091.0,63090.0,0.55548872]
[1726900354785,0.013826,63091.0,63090.0,0.55448872]
[1726900355010,0.021826,63091.0,63090.0,0.55548872]
[1726900355909,0.016826,63091.0,63090.0,0.55548872]
[1726900356117,0.016826,63091.0,63090.0,0.45296958]
[1726900356351,0.016826,63091.0,63090.0,0.45496958]
[1726900357229,0.016826,63091.0,63090.0,0.51023315]
[1726900357441,0.016826,63091.0,63090.0,0.45496958]
[1726900357907,0.016826,63091.0,63090.0,0.61802325]
[1726900359024,0.016826,63091.0,63090.0,0.49617958]
[1726900359253,0.016826,63091.0,63090.0,0.61802325]
[1726900359701,0.016826,63091.0,63090.0,0.60056291]
[1726900359929,0.000826,63110.0,63091.0,0.123]
[1726900360157,0.2377537,63109.0,63102.0,0.023]
[1726900360389,0.000826,63110.0,63105.0,0.0236]
[1726900360589,0.000826,63126.0,63108.0,0.0466]
[1726900360803,0.9508641,63119.0,63118.0,0.14544367]
[1726900361012,0.000826,63126.0,63119.0,0.1]
[1726900362121,0.007,63119.0,63118.0,0.0246]
[1726900362554,0.000826,63126.0,63118.0,0.0236]
[1726900363013,0.007826,63126.0,63119.0,0.001]
[1726900363854,0.019826,63126.0,63119.0,0.001]
[1726900364062,0.012826,63126.0,63118.0,0.0246]
[1726900364277,0.000826,63126.0,63118.0,0.04143383]
[1726900364491,0.000826,63126.0,63118.0,0.04243383]
[1726900364704,0.012826,63126.0,63119.0,0.001]
[1726900365115,0.012826,63126.0,63119.0,0.002]
[1726900365344,0.012826,63126.0,63119.0,0.001]
[1726900366431,0.012826,63126.0,63113.0,0.023]
[1726900366432,0.28572334,63126.0,63113.0,0.023]
[1726900366677,0.28572334,63126.0,63117.0,0.1]
[1726900366905,0.29772334,63126.0,63117.0,0.1]
[1726900367329,0.28572334,63126.0,63117.0,0.1]
[1726900367549,0.28572334,63126.0,63119.0,0.001]
[1726900367550,0.12184367,63123.0,63119.0,0.001]
[1726900367753,0.12184367,63123.0,63117.0,0.1]
[1726900368172,0.12184367,63123.0,63117.0,0.101]
[1726900368399,0.12184367,63123.0,63117.0,0.1]
[1726900368824,0.12184367,63123.0,63119.0,0.001]
[1726900369037,0.12184367,63123.0,63117.0,0.1]
[1726900369477,0.12184367,63123.0,63117.0,0.101]
[1726900370600,0.13484367,63123.0,63117.0,0.101]
[1726900370817,0.13484367,63123.0,63117.0,0.1]
[1726900371023,0.13984367,63123.0,63119.0,0.001]
[1726900371446,0.018,63123.0,63117.0,0.1]
[1726900371895,0.023,63123.0,63117.0,0.101]
[1726900372107,0.018,63123.0,63117.0,0.1]
[1726900372552,0.032,63123.0,63119.0,0.001]
[1726900372768,0.032,63123.0,63119.0,0.101]
[1726900372973,0.019,63123.0,63119.0,0.101]
[1726900373210,0.032,63123.0,63119.0,0.101]
[1726900373879,0.013,63123.0,63118.0,0.00316844]
[1726900374284,0.018,63123.0,63118.0,0.00316844]
[1726900374720,0.013826,63123.0,63118.0,0.00316844]
[1726900374925,0.005826,63123.0,63119.0,0.001]
[1726900375166,0.005826,63123.0,63120.0,0.00316829]
[1726900375368,0.000826,63123.0,63120.0,0.00316829]
[1726900375572,0.005826,63123.0,63119.0,0.1]
[1726900376283,0.018826,63123.0,63119.0,0.1]
[1726900376700,0.005826,63123.0,63119.0,0.1]
[1726900377217,0.000826,63123.0,63118.0,0.023]
[1726900377636,0.013826,63123.0,63118.0,0.023]
[1726900378045,0.005826,63123.0,63120.0,0.001]
[1726900378456,0.000826,63123.0,63118.0,0.023]
[1726900378863,0.005826,63123.0,63118.0,0.024]
[1726900379070,0.000826,63123.0,63118.0,0.023]
[1726900379502,0.013826,63123.0,63118.0,0.023]
[1726900380143,0.000826,63123.0,63118.0,0.023]
[1726900380350,0.005826,63123.0,63120.0,0.001]
[1726900380765,0.018826,63123.0,63120.0,0.001]
[1726900381153,0.005826,63123.0,63120.0,0.001]
[1726900381383,0.000826,63123.0,63118.0,0.023]
[1726900381787,0.005826,63123.0,63118.0,0.024]
[1726900382253,0.000826,63123.0,63112.0,0.1]
[1726900382257,0.12184367,63121.0,63112.0,0.023]
[1726900382464,0.12184367,63121.0,63112.0,0.1409845]
[1726900382677,0.0926,63122.0,63120.0,0.001]
[1726900382908,0.21444367,63122.0,63120.0,0.001]
[1726900383574,0.011,63121.0,63120.0,0.001]
[1726900383819,0.011,63121.0,63105.0,0.1986]
[1726900384060,0.011,63121.0,63114.0,0.1]
[1726900384061,0.12184367,63118.0,63114.0,0.1]
[1726900384272,0.16305367,63117.0,63114.0,0.1]
[1726900384502,0.17065776,63117.0,63114.0,0.1]
[1726900384800,0.17065776,63117.0,63104.0,0.95055528]
[1726900385012,0.17065776,63117.0,63112.0,0.1]
[1726900385234,0.16305367,63117.0,63112.0,0.1]
[1726900385473,0.00760409,63116.0,63112.0,0.1]
[1726900385687,0.00760409,63116.0,63114.0,0.001]
[1726900386393,0.21444367,63115.0,63114.0,0.001]
[1726900386837,0.22204778,63115.0,63114.0,0.001]
[1726900387302,0.22204778,63115.0,63104.0,0.95220728]
[1726900387303,0.38510145,63115.0,63104.0,0.95220728]
[1726900387515,0.12184367,63109.0,63104.0,0.95220728]
[1726900387733,0.28489734,63109.0,63104.0,0.95220728]
[1726900388155,0.00757812,63108.0,63104.0,0.95220728]
[1726900388816,0.00757812,63108.0,63104.0,0.002652]
[1726900389034,0.00757812,63108.0,63104.0,0.001652]
[1726900389464,0.01257812,63108.0,63104.0,0.002652]
[1726900390300,0.02157812,63108.0,63104.0,0.002652]
[1726900394701,0.01657812,63108.0,63104.0,0.001652]
[1726900395187,0.01657812,63108.0,63104.0,0.002652]
[1726900395188,0.02157812,63108.0,63104.0,0.002652]
[1726900395426,0.01657812,63108.0,63104.0,0.001652]
[1726900395665,0.00757812,63108.0,63104.0,0.001652]
[1726900395900,0.01257812,63108.0,63104.0,0.002652]
[1726900396872,0.02157812,63108.0,63104.0,0.002652]
[1726900397094,0.01657812,63108.0,63104.0,0.001652]
[1726900397612,0.02157812,63108.0,63104.0,0.002652]
[1726900398937,0.01257812,63108.0,63104.0,0.002652]
[1726900399380,0.02357812,63108.0,63104.0,0.002652]
[1726900402096,0.12127812,63108.0,63104.0,0.002652]
[1726900404141,0.24312179,63108.0,63104.0,0.002652]
[1726900409089,0.12127812,63108.0,63104.0,0.002652]
[1726900415452,0.40617546,63108.0,63104.0,0.002652]
[1726900418480,0.28433179,63108.0,63104.0,0.002652]
[1726900420145,0.28433179,63108.0,63105.0,0.01711487]
[1726900420364,0.28433179,63108.0,63106.0,0.01711487]
[1726900420557,0.28433179,63108.0,63107.0,0.01711487]
[1726900421171,0.27933179,63108.0,63107.0,0.01711487]
[1726900421618,0.28433179,63108.0,63107.0,0.01711487]
[1726900421815,0.27333179,63108.0,63107.0,0.01711487]
[1726900422021,0.27933179,63108.0,63107.0,0.01711487]
[1726900422239,0.28433179,63108.0,63107.0,0.01811487]
[1726900422657,0.27333179,63108.0,63107.0,0.001]
[1726900422883,0.39517546,63108.0,63107.0,0.001]
[1726900423078,0.40617546,63108.0,63107.0,0.001]
[1726900431567,0.45355541,63108.0,63107.0,0.001]
[1726900433348,0.40617546,63108.0,63107.0,0.001]
[1726900433617,0.28433179,63108.0,63107.0,0.001]
[1726900433833,0.33186007,63108.0,63107.0,0.001]
[1726900434052,0.33186007,63108.0,63107.0,0.002652]
[1726900434277,0.23416007,63108.0,63107.0,0.002652]
[1726900434728,0.18663179,63108.0,63107.0,0.002652]
[1726900437548,0.18614793,63108.0,63107.0,0.002652]
[1726900437752,0.17905367,63108.0,63107.0,0.002652]
[1726900439025,0.016,63108.0,63107.0,0.002652]
[1726900447338,0.016826,63108.0,63107.0,0.002652]
[1726900471468,0.016826,63108.0,63107.0,0.099652]
[1726900475583,0.016826,63108.0,63107.0,0.11696958]
[1726900475799,0.016826,63108.0,63107.0,0.099652]
[1726900476668,0.016826,63108.0,63107.0,0.002652]
[1726900480580,0.016826,63108.0,63107.0,0.193652]
[1726900492903,0.005826,63108.0,63107.0,0.193652]
[1726900493329,0.015826,63108.0,63107.0,0.193652]
[1726900493744,0.005826,63108.0,63107.0,0.193652]
[1726900494161,0.005826,63108.0,63107.0,0.192652]
[1726900494682,0.010826,63108.0,63107.0,0.193652]
[1726900510129,0.010826,63108.0,63107.0,0.24906648]
[1726900510723,0.010826,63108.0,63107.0,0.193652]
[1726900511515,0.010826,63108.0,63107.0,0.24908462]
[1726900511714,0.010826,63108.0,63107.0,0.24908859]
[1726900512141,0.010826,63108.0,63107.0,0.193652]
[1726900512357,0.010826,63108.0,63107.0,0.24909338]
[1726900514108,0.010826,63108.0,63107.0,0.25226214]
[1726900515212,0.010826,63108.0,63107.0,0.24909338]
[1726900515637,0.010826,63108.0,63107.0,0.05809338]
[1726900519360,0.010826,63108.0,63107.0,0.15809338]
[1726900520384,0.102826,63108.0,63107.0,0.15809338]
[1726900520578,0.102826,63108.0,63107.0,0.05809338]
[1726900520797,0.102826,63108.0,63107.0,0.002652]
[1726900557780,0.010826,63108.0,63107.0,0.002652]
[1726900562194,0.010826,63108.0,63107.0,0.02059736]
[1726900565674,0.010826,63108.0,63107.0,0.21439736]
[1726900565874,0.010826,63108.0,63107.0,0.21756619]
[1726900577818,0.010826,63108.0,63107.0,0.24056619]